fUST/lending_fUST_20260420
["ID","MTS","AMOUNT","RATE_DAILY","PERIOD"]
[420839825,1776614462573,-1936.3860906,5e-05,2]
[420839826,1776614462623,-1936.3860906,7.6e-05,2]
[420839827,1776614462634,-229.11251134,7.6e-05,2]
[420839828,1776614462643,-292.57318612,7.6e-05,2]
[420839845,1776614738479,-300.0,7.524e-05,2]
[420839882,1776615032583,-499.64961958,7.374e-05,2]
[420839883,1776615032594,-4500.35038042,7.374e-05,2]
[420839884,1776615032604,-220.0,7.448e-05,2]
[420839885,1776615032614,-126.64961956,7.487e-05,2]
[420839903,1776615038959,-23.35038044,7.487e-05,2]
[420839904,1776615038970,-480.53103646,9e-05,2]
[420839905,1776615039070,-455.59504361,9e-05,2]
[420839906,1776615039081,-635.806304,9.45e-05,2]
[420839907,1776615039093,-173.8172407,9.487e-05,2]
[420839908,1776615039104,-620.7903152,9.923e-05,2]
[420839909,1776615039116,-300.0,9.999e-05,2]
[420839910,1776615039127,-419.91550361,0.0001,2]
[420839911,1776615039137,-2799.50104981,0.0001,2]
[420839912,1776615039149,-341.02948213,0.0001,2]
[420839913,1776615039161,-620.03951576,0.00010419,2]
[420839914,1776615039172,-620.00197579,0.0001094,2]
[420839915,1776615039183,-213.622162,0.00013699,2]
[420839916,1776615039193,-240.32,0.00013699,2]
[420839917,1776615039204,-1000.0,0.00013699,2]
[420839918,1776615039215,-4094.29980091,0.00017,7]
[420839919,1776615039228,-2974.85912051,0.00017,7]
[420839923,1776615039256,-2849.8060003,7.412e-05,2]
[420839925,1776615039269,-2150.1939997,7.412e-05,2]
[420839927,1776615039280,-105862.84406466,0.00017,7]
[420839936,1776615044132,-2720.58797254,0.00017,7]
[420839937,1776615044145,-378.38774052,0.00017,7]
[420839938,1776615044188,-3097.4470297,0.00017,7]
[420840004,1776615047038,-16415.05310804,0.00017,7]
[420840192,1776616232066,-423.92082829,0.00012892,2]
[420840193,1776616232140,-480.89726216,0.00012892,2]
[420840194,1776616232167,-4095.18190955,0.00012892,2]
[420840195,1776616232177,-200.0,0.00013022,2]
[420840196,1776616232186,-225.43351982,0.00013156,2]
[420840197,1776616232196,-1000.0,0.00013699,2]
[420840198,1776616232205,-500.54196291,0.00016999,2]
[420840199,1776616232214,-300.0,0.00016999,2]
[420840200,1776616232224,-300.0,0.00016999,2]
[420840201,1776616232233,-2842.04779547,0.00017,7]
[420840311,1776616238461,-1477.3,0.00012763,2]
[420840318,1776616240530,-469.07870949,0.00012763,2]
[420840351,1776616246342,-5000.0,0.00012635,2]
[420840352,1776616246352,-3053.62129051,0.00012763,2]
[420840353,1776616246362,-13943.52130141,0.00017,7]
[420840493,1776617432202,-458.20547818,8.305e-05,2]
[420840494,1776617432212,-4311.68421892,8.389e-05,2]
[420840496,1776617432226,-688.31578108,8.389e-05,2]
[420840498,1776617432236,-504.0,8.474e-05,2]
[420840500,1776617432245,-224.15848054,8.517e-05,2]
[420840503,1776617432255,-620.04224948,9e-05,2]
[420840504,1776617432265,-910.0,0.00010627,2]
[420840505,1776617432274,-300.0,0.00010628,17]
[420840506,1776617432284,-1000.0,0.00013699,2]
[420840507,1776617432294,-223.96082055,0.00014185,2]
[420840508,1776617432303,-269.6,0.000149,2]
[420840509,1776617432312,-300.0,0.00015159,2]
[420840510,1776617432322,-300.0,0.00015159,2]
[420840511,1776617432331,-300.0,0.00015159,2]
[420840512,1776617432340,-819.09264036,0.0001516,7]
[420840513,1776617432350,-1000.0,0.00015816,2]
[420840514,1776617432360,-420.0,0.00016588,2]
[420840515,1776617432369,-819.09264036,0.00016681,7]
[420840516,1776617432379,-500.0,0.00016999,2]
[420840517,1776617432388,-10430.45545189,0.00017,7]
[420840518,1776617432399,-819.09264036,0.00017,7]
[420840519,1776617432408,-819.09264036,0.00017,7]
[420840520,1776617432418,-302.58343,0.0001741,2]
[420840521,1776617432428,-161.47180102,0.000175,120]
[420840522,1776617432441,-171.5830378,0.00017951,2]
[420840523,1776617432451,-1932.5,0.00018156,2]
[420840524,1776617432461,-1408.0,0.00018321,2]
[420840525,1776617432471,-500.0,0.00018347,2]
[420840526,1776617432480,-500.0,0.00018347,2]
[420840527,1776617432490,-407.1082663,0.00018347,2]
[420840528,1776617432499,-500.0,0.00018347,2]
[420840529,1776617432509,-500.0,0.00018347,2]
[420840530,1776617432518,-500.0,0.00018347,2]
[420840531,1776617432528,-500.0,0.00018347,2]
[420840532,1776617432537,-221.33246102,0.00018347,2]
[420840533,1776617432547,-500.0,0.00018347,2]
[420840534,1776617432556,-500.0,0.00018347,2]
[420840535,1776617432565,-500.0,0.00018347,2]
[420840536,1776617432575,-190.171829,0.00018347,2]
[420840537,1776617432584,-500.0,0.00018347,2]
[420840538,1776617432594,-500.0,0.00018347,2]
[420840539,1776617432603,-500.0,0.00018347,2]
[420840540,1776617432613,-375.13203084,0.00018347,2]
[420840541,1776617432622,-500.0,0.00018347,2]
[420840542,1776617432631,-500.0,0.00018347,2]
[420840543,1776617432640,-500.0,0.00018347,2]
[420840544,1776617432650,-401.01856693,0.00018347,2]
[420840545,1776617432660,-500.0,0.00018347,2]
[420840546,1776617432670,-500.0,0.00018347,2]
[420840547,1776617432679,-500.0,0.00018347,2]
[420840548,1776617432688,-500.0,0.00018347,2]
[420840549,1776617432698,-650.0,0.00018347,2]
[420840550,1776617432707,-500.0,0.00018347,2]
[420840551,1776617432717,-500.0,0.00018347,2]
[420840552,1776617432726,-4101.9924865,0.00018348,2]
[420840553,1776617432739,-2260.85709008,0.00018348,2]
[420840638,1776617443419,-88.62585289,0.00018087,2]
[420840639,1776617443514,-124.99630911,0.00018087,2]
[420840640,1776617443525,-226.97349136,0.00018348,2]
[420840641,1776617443568,-446.0,0.00018348,2]
[420840656,1776617446508,-5000.0,0.00017907,2]
[420840663,1776617446563,-10514.69999985,0.00018348,2]
[420840778,1776618123336,-300.0,0.00012894,2]
[420840787,1776618189202,163.9,9e-05,30]
[420840852,1776618632393,-377.74899,9.899e-05,2]
[420840853,1776618632404,-4622.25101,9.899e-05,2]
[420840854,1776618632413,-300.0,9.999e-05,2]
[420840855,1776618632422,-285.0,9.999e-05,2]
[420840856,1776618632431,-500.0,0.0001,2]
[420840857,1776618632440,-6700.0,0.0001,2]
[420840858,1776618632451,-243.01616633,0.00011193,2]
[420840859,1776618632460,-5000.0,0.00012386,2]
[420840860,1776618632469,-1000.0,0.00013699,2]
[420840861,1776618632478,-441.0,0.00017787,2]
[420840862,1776618632488,-4394.50044873,0.00018,2]
[420840863,1776618632497,-152.0,0.00018114,7]
[420840864,1776618632507,-152.0,0.00018114,7]
[420840866,1776618632515,-152.0,0.00018114,7]
[420840868,1776618632525,-500.0,0.00018147,2]
[420840870,1776618632535,-500.0,0.00018147,2]
[420840872,1776618632544,-451.06049871,0.00018147,2]
[420840874,1776618632554,-500.0,0.00018147,2]
[420840876,1776618632563,-500.0,0.00018147,2]
[420840878,1776618632572,-500.0,0.00018147,2]
[420840880,1776618632582,-500.0,0.00018147,2]
[420840882,1776618632591,-500.0,0.00018147,2]
[420840884,1776618632601,-500.0,0.00018147,2]
[420840885,1776618632610,-500.0,0.00018147,2]
[420840886,1776618632620,-500.0,0.00018147,2]
[420840887,1776618632630,-500.0,0.00018147,2]
[420840888,1776618632640,-170.61746633,0.00018147,2]
[420840889,1776618632649,-284.97578641,0.00018147,2]
[420840890,1776618632659,-500.0,0.00018147,2]
[420840891,1776618632668,-354.93272272,0.00018147,2]
[420840892,1776618632678,-500.0,0.00018147,2]
[420840893,1776618632688,-500.0,0.00018147,2]
[420840894,1776618632697,-500.0,0.00018147,2]
[420840895,1776618632709,-500.0,0.00018147,2]
[420840896,1776618632719,-500.0,0.00018147,2]
[420840897,1776618632728,-500.0,0.00018147,2]
[420840898,1776618632738,-500.0,0.00018147,2]
[420840899,1776618632747,-500.0,0.00018147,2]
[420840900,1776618632757,-500.0,0.00018147,2]
[420840901,1776618632767,-500.0,0.00018147,2]
[420840902,1776618632776,-500.0,0.00018147,2]
[420840903,1776618632786,-500.0,0.00018147,2]
[420840904,1776618632796,-500.0,0.00018147,2]
[420840905,1776618632805,-36891.2076859,0.00018148,2]
[420840906,1776618632817,-291.85012365,0.00018148,2]
[420840907,1776618632828,-1548.40651717,0.00018148,2]
[420840908,1776618632840,-1071.458,0.00018148,2]
[420840909,1776618632855,-809.56186714,0.00018148,2]
[420840931,1776618638933,-304.7,0.00017966,2]
[420840932,1776618638942,-780.61387457,0.00018148,2]
[420840933,1776618639038,-1498.21871523,0.00018148,2]
[420840934,1776618639049,-25367.98404523,0.00018148,2]
[420840935,1776618639060,-5661.58779623,0.00018148,2]
[420840949,1776618641056,-6810.10081707,0.00018148,2]
[420840950,1776618641068,-1071.84988445,0.00018148,2]
[420840985,1776618643675,-46000.0,0.00018148,2]
[420840993,1776618646698,-304.7,0.00018148,2]
[420841018,1776619831744,-441.70512035,0.00012892,2]
[420841019,1776619838447,-4558.29487965,0.00012892,2]
[420841020,1776619838456,-252.3405406,0.00012957,2]
[420841021,1776619838465,-503.0,0.00013022,2]
[420841022,1776619838475,-177.19341079,0.00013561,2]
[420841023,1776619838486,-177.19341079,0.00013562,2]
[420841024,1776619838495,-177.19341079,0.00013631,2]
[420841025,1776619838504,-177.19341079,0.00013697,2]
[420841026,1776619838513,-300.0,0.00013698,2]
[420841027,1776619838522,-200.0,0.00013698,2]
[420841028,1776619838531,-1000.0,0.00013699,2]
[420841029,1776619838540,-1000.0,0.00013699,2]
[420841030,1776619838549,-177.19341079,0.00013699,2]
[420841031,1776619838559,-220.0865898,0.00014192,2]
[420841032,1776619838568,-1872.4521552,0.00017947,2]
[420841056,1776619845960,-15165.96154098,0.00017947,2]
[420841057,1776619845970,-13019.44658853,0.00017947,2]
[420841058,1776619845980,-500.0,0.00018046,2]
[420841059,1776619845989,-224.97530276,0.00018046,2]
[420841060,1776619846015,-275.02469724,0.00018046,2]
[420841061,1776619846025,-31.64530276,0.00018046,2]
[420841067,1776619902775,-179.163325,8.761e-05,2]
[420841102,1776620805155,-5000.0,0.00012612,2]
[420841103,1776620805176,-150.0,0.0001274,2]
[420841104,1776620805198,-2089.77525724,0.000129,2]
[420841105,1776620805219,-975.0,0.00012998,2]
[420841106,1776620805240,-300.0,0.00012998,2]
[420841107,1776620805260,-362.41464701,0.00012999,2]
[420841108,1776620805281,-168.9517238,0.00012999,2]
[420841109,1776620805301,-500.0,0.00012999,2]
[420841110,1776620805322,-500.0,0.00012999,2]
[420841111,1776620805342,-292.70063837,0.00012999,2]
[420841112,1776620805362,-500.0,0.00012999,2]
[420841113,1776620805383,-500.0,0.00012999,2]
[420841114,1776620805406,-500.0,0.00012999,2]
[420841115,1776620805428,-500.0,0.00012999,2]
[420841116,1776620805450,-500.0,0.00012999,2]
[420841117,1776620805472,-500.0,0.00012999,2]
[420841118,1776620805496,-400.84491514,0.00012999,2]
[420841119,1776620805520,-500.0,0.00012999,2]
[420841120,1776620805542,-500.0,0.00012999,2]
[420841121,1776620805565,-500.0,0.00012999,2]
[420841122,1776620805586,-500.0,0.00012999,2]
[420841123,1776620805606,-607.87351304,0.00012999,2]
[420841124,1776620805627,-392.5569804,0.00012999,2]
[420841183,1776621032018,-1498.16128912,0.00012215,2]
[420841342,1776621038220,-3501.83871088,0.00012215,2]
[420841344,1776621038230,-10000.0,0.00012339,2]
[420841346,1776621038239,-300.0,0.00012725,2]
[420841348,1776621038248,-192.40120149,0.00012726,2]
[420841350,1776621038257,-500.0,0.00012726,2]
[420841352,1776621038267,-500.0,0.00012726,2]
[420841354,1776621038276,-500.0,0.00012726,2]
[420841356,1776621038285,-500.0,0.00012726,2]
[420841357,1776621038296,-248.60296465,0.00012726,2]
[420841359,1776621038305,-151.5,0.00012726,2]
[420841361,1776621038314,-260.502695,0.00012726,2]
[420841363,1776621038323,-151.5,0.00012726,2]
[420841364,1776621038332,-259.15489992,0.00012726,2]
[420841366,1776621038341,-151.5,0.00012726,2]
[420841368,1776621038351,-151.5,0.00012726,2]
[420841369,1776621038360,-248.38411608,0.00012726,2]
[420841371,1776621038370,-500.0,0.00012726,2]
[420841373,1776621038379,-500.0,0.00012726,2]
[420841375,1776621038388,-325.76162427,0.00012726,2]
[420841377,1776621038397,-1671.82020576,0.000129,2]
[420841379,1776621038407,-20.95536213,0.00012999,2]
[420841381,1776621038416,-500.0,0.00012999,2]
[420841383,1776621038426,-598.4529059,0.00012999,2]
[420841385,1776621038435,-500.0,0.00012999,2]
[420841387,1776621038445,-500.0,0.00012999,2]
[420841389,1776621038455,-540.39181488,0.00012999,2]
[420841391,1776621038464,-500.0,0.00012999,2]
[420841393,1776621038473,-500.0,0.00012999,2]
[420841395,1776621038482,-500.0,0.00012999,2]
[420841397,1776621038492,-500.0,0.00012999,2]
[420841399,1776621038501,-500.0,0.00012999,2]
[420841401,1776621038510,-500.0,0.00012999,2]
[420841403,1776621038519,-500.0,0.00012999,2]
[420841405,1776621038529,-500.0,0.00012999,2]
[420841407,1776621038538,-500.0,0.00012999,2]
[420841409,1776621038547,-500.0,0.00012999,2]
[420841411,1776621038557,-500.0,0.00012999,2]
[420841413,1776621038566,-500.0,0.00012999,2]
[420841415,1776621038575,-500.0,0.00012999,2]
[420841417,1776621038584,-500.0,0.00012999,2]
[420841419,1776621038593,-500.0,0.00012999,2]
[420841421,1776621038602,-500.0,0.00012999,2]
[420841423,1776621038612,-500.0,0.00012999,2]
[420841425,1776621038621,-505.97416976,0.00012999,2]
[420841427,1776621038630,-500.0,0.00012999,2]
[420841429,1776621038639,-500.0,0.00012999,2]
[420841431,1776621038648,-500.0,0.00012999,2]
[420841433,1776621038659,-500.0,0.00012999,2]
[420841435,1776621038668,-500.0,0.00012999,2]
[420841437,1776621038677,-200.0,0.00012999,2]
[420841439,1776621038687,-500.0,0.00012999,2]
[420841440,1776621038697,-93875.47693513,0.00013,2]
[420841444,1776621038805,-98827.58306487,0.00013,2]
[420841445,1776621038815,-500.0,0.00013,2]
[420841446,1776621038825,-300.04950351,0.00013,2]
[420841447,1776621038835,-500.0,0.00013,2]
[420841448,1776621038845,-500.0,0.00013,2]
[420841449,1776621038854,-500.0,0.00013,2]
[420841450,1776621038863,-151.0,0.00013,2]
[420841451,1776621038873,-151.0,0.00013,2]
[420841452,1776621038882,-151.0,0.00013,2]
[420841453,1776621038892,-151.0,0.00013,2]
[420841454,1776621038903,-500.0,0.00013,2]
[420841455,1776621038914,-500.0,0.00013,2]
[420841456,1776621038924,-183.6137343,0.00013,2]
[420841457,1776621038934,-151.0,0.00013,2]
[420841458,1776621038943,-500.0,0.00013,2]
[420841459,1776621038952,-500.0,0.00013,2]
[420841460,1776621038961,-500.0,0.00013,2]
[420841461,1776621038970,-507.95438715,0.00013,2]
[420841462,1776621038979,-500.0,0.00013,2]
[420841463,1776621038989,-517.19822348,0.00013,2]
[420841464,1776621038999,-500.0,0.00013,2]
[420841465,1776621039008,-500.0,0.00013,2]
[420841466,1776621039018,-500.0,0.00013,2]
[420841467,1776621039028,-500.0,0.00013,2]
[420841468,1776621039037,-500.0,0.00013,2]
[420841469,1776621039046,-600.0,0.00013259,2]
[420841470,1776621039056,-300.0,0.00013259,2]
[420841471,1776621039066,-300.0,0.00013259,2]
[420841472,1776621039074,-300.0,0.00013259,2]
[420841473,1776621039084,-300.0,0.00013259,2]
[420841474,1776621039093,-300.0,0.00013259,2]
[420841475,1776621039103,-693.421635,0.00013507,2]
[420841476,1776621039112,-500.0,0.00013548,2]
[420841477,1776621039122,-1000.0,0.00013548,2]
[420841478,1776621039131,-1000.0,0.00013548,2]
[420841479,1776621039140,-812.83774384,0.00013548,2]
[420841480,1776621039150,-1000.0,0.00013548,2]
[420841481,1776621039160,-1000.0,0.00013548,2]
[420841482,1776621039169,-1000.0,0.00013548,2]
[420841483,1776621039178,-1000.0,0.00013548,2]
[420841484,1776621039187,-1000.0,0.00013548,2]
[420841485,1776621039196,-151.0,0.00013548,2]
[420841486,1776621039205,-151.0,0.00013548,2]
[420841487,1776621039214,-151.0,0.00013548,2]
[420841488,1776621039223,-264.687177,0.00013548,2]
[420841489,1776621039232,-154.033607,0.00013548,2]
[420841490,1776621039242,-500.0,0.00013698,2]
[420841491,1776621039251,-500.0,0.00013698,2]
[420841492,1776621039260,-500.0,0.00013698,2]
[420841493,1776621039270,-500.0,0.00013698,2]
[420841494,1776621039280,-500.0,0.00013698,2]
[420841495,1776621039289,-500.0,0.00013698,2]
[420841496,1776621039299,-500.0,0.00013698,2]
[420841497,1776621039309,-500.0,0.00013698,2]
[420841498,1776621039318,-500.0,0.00013698,2]
[420841499,1776621039327,-500.0,0.00013698,2]
[420841500,1776621039336,-537.88469724,0.00013698,2]
[420841501,1776621039347,-20000.0,0.00013699,2]
[420841502,1776621039357,-20000.0,0.00013699,2]
[420841503,1776621039366,-1000.0,0.00013699,2]
[420841504,1776621039375,-151.0,0.00013699,2]
[420841505,1776621039384,-151.0,0.00013699,2]
[420841506,1776621039394,-151.0,0.00013699,2]
[420841507,1776621039403,-151.0,0.00013699,2]
[420841508,1776621039412,-151.0,0.00013699,2]
[420841509,1776621039422,-151.0,0.00013699,2]
[420841510,1776621039430,-151.0,0.00013699,2]
[420841511,1776621039439,-151.0,0.00013699,2]
[420841512,1776621039448,-151.0,0.00013699,2]
[420841513,1776621039457,-151.0,0.00013699,2]
[420841514,1776621039466,-151.0,0.00013699,2]
[420841515,1776621039474,-151.0,0.00013699,2]
[420841516,1776621039484,-151.0,0.00013923,2]
[420841517,1776621039493,-420.0,0.00013959,2]
[420841518,1776621039502,-693.421635,0.00014076,2]
[420841519,1776621039511,-1500.0,0.00014096,2]
[420841520,1776621039521,-502.02264536,0.00014096,2]
[420841521,1776621039530,-1500.0,0.00014096,2]
[420841522,1776621039540,-1500.0,0.00014096,2]
[420841523,1776621039549,-1500.0,0.00014096,2]
[420841524,1776621039559,-1500.0,0.00014096,2]
[420841525,1776621039568,-1500.0,0.00014096,2]
[420841526,1776621039577,-151.0,0.00014444,2]
[420841527,1776621039586,-151.0,0.00014444,2]
[420841528,1776621039596,-151.0,0.00014444,2]
[420841529,1776621039605,-1671.82020576,0.00014445,2]
[420841530,1776621039615,-720.0,0.00014585,2]
[420841531,1776621039624,-2000.0,0.00014644,2]
[420841532,1776621039634,-693.421635,0.00014644,2]
[420841533,1776621039643,-177.0,0.0001474,2]
[420841534,1776621039652,-2500.0,0.00015192,2]
[420841535,1776621039663,-151.0,0.00015192,2]
[420841536,1776621039672,-151.0,0.00015192,2]
[420841537,1776621039681,-151.0,0.00015192,2]
[420841538,1776621039690,-693.421635,0.00015213,2]
[420841539,1776621039699,-587.0,0.00015313,2]
[420841540,1776621039708,-194.0,0.000155,2]
[420841541,1776621039717,-3000.0,0.0001574,2]
[420841542,1776621039726,-693.421635,0.00015781,2]
[420841543,1776621039735,-1671.82020576,0.00015989,2]
[420841544,1776621039745,-864.0,0.00016043,2]
[420841545,1776621039754,-3500.0,0.00016288,2]
[420841546,1776621039764,-693.421635,0.0001635,2]
[420841547,1776621039774,-151.0,0.00016677,2]
[420841548,1776621039783,-151.0,0.00016677,2]
[420841549,1776621039792,-282.23597,0.00016677,2]
[420841550,1776621039801,-204.0,0.0001674,2]
[420841551,1776621039810,-823.0,0.00016798,2]
[420841553,1776621039819,-4000.0,0.00016836,2]
[420841555,1776621039828,-500.0,0.00017159,2]
[420841556,1776621039837,-500.0,0.00017159,2]
[420841557,1776621039846,-500.0,0.00017159,2]
[420841558,1776621039855,-500.0,0.00017159,2]
[420841559,1776621039864,-500.0,0.00017159,2]
[420841560,1776621039873,-500.0,0.00017159,2]
[420841561,1776621039883,-508.0,0.00017159,2]
[420841562,1776621039892,-508.0,0.00017159,2]
[420841563,1776621039901,-508.0,0.00017159,2]
[420841564,1776621039910,-508.0,0.00017159,2]
[420841565,1776621039920,-508.0,0.00017159,2]
[420841566,1776621039929,-508.0,0.00017159,2]
[420841567,1776621039938,-508.0,0.00017159,2]
[420841568,1776621039947,-151.5,0.00017159,2]
[420841569,1776621039956,-151.5,0.00017159,2]
[420841570,1776621039966,-508.0,0.00017159,2]
[420841571,1776621039975,-151.5,0.00017159,2]
[420841572,1776621039984,-508.0,0.00017159,2]
[420841573,1776621039993,-162.2405692,0.00017159,2]
[420841574,1776621040003,-508.0,0.00017159,2]
[420841575,1776621040012,-508.0,0.00017159,2]
[420841576,1776621040022,-508.0,0.00017159,2]
[420841577,1776621040031,-508.0,0.00017159,2]
[420841578,1776621040040,-508.0,0.00017159,2]
[420841579,1776621040050,-508.0,0.00017159,2]
[420841580,1776621040059,-508.0,0.00017159,2]
[420841581,1776621040069,-508.0,0.00017159,2]
[420841582,1776621040078,-508.0,0.00017159,2]
[420841583,1776621040087,-508.0,0.00017159,2]
[420841584,1776621040097,-508.0,0.00017159,2]
[420841585,1776621040106,-508.0,0.00017159,2]
[420841586,1776621040115,-508.0,0.00017159,2]
[420841588,1776621040125,-508.0,0.00017159,2]
[420841590,1776621040134,-531.41854466,0.00017159,2]
[420841592,1776621040143,-355.98268998,0.00017159,2]
[420841594,1776621040152,-1048.32970836,0.00017384,2]
[420841596,1776621040161,-257.10670968,0.00017384,2]
[420841598,1776621040171,-179.163325,0.00017522,2]
[420841600,1776621040180,-1671.82020576,0.00017534,2]
[420841604,1776621040440,-1000.0,0.00017648,2]
[420841605,1776621040449,-151.0,0.00017648,2]
[420841606,1776621040459,-151.0,0.00017648,2]
[420841607,1776621040468,-152.0,0.0001771,7]
[420841608,1776621040477,-151.3039668,0.0001789,2]
[420841609,1776621040487,-151.0,0.00017896,2]
[420841610,1776621040496,-1200.0,0.000179,2]
[420841611,1776621040505,-500.0,0.00017946,2]
[420841612,1776621040515,-152.0,0.0001795,7]
[420841613,1776621040524,-152.0,0.0001795,7]
[420841614,1776621040534,-152.0,0.0001795,7]
[420841615,1776621040543,-152.0,0.0001795,7]
[420841616,1776621040552,-500.0,0.00018045,2]
[420841617,1776621040562,-151.0,0.00018148,2]
[420841618,1776621040571,-151.0,0.00018148,2]
[420841619,1776621040580,-151.68053369,0.00018148,2]
[420841620,1776621040590,-1771.4,0.00018203,2]
[420841621,1776621040600,-425.22359987,0.00018347,2]
[420841622,1776621040610,-350.93958373,0.00018347,2]
[420841623,1776621040619,-1402.3545766,0.00018347,2]
[420841624,1776621040629,-704.55743318,0.00018347,2]
[420841625,1776621040638,-2818.22973272,0.00018347,2]
[420841626,1776621040648,-6334.67588172,0.00018347,2]
[420841627,1776621040657,-486.81973536,0.00018348,2]
[420841628,1776621040666,-1152.0,0.00018426,2]
[420841629,1776621040676,-151.5,0.00018452,3]
[420841630,1776621040686,-151.5,0.00018452,3]
[420841631,1776621040696,-500.0,0.00018452,3]
[420841632,1776621040705,-300.75627425,0.00018452,3]
[420841633,1776621040717,-254.66716068,0.00018452,3]
[420841634,1776621040727,-500.0,0.00018452,3]
[420841635,1776621040738,-500.0,0.00018452,3]
[420841636,1776621040749,-621.71843292,0.00018452,3]
[420841637,1776621040759,-500.0,0.00018452,3]
[420841638,1776621040768,-500.0,0.00018452,3]
[420841639,1776621040778,-500.0,0.00018452,3]
[420841640,1776621040787,-500.0,0.00018452,3]
[420841641,1776621040796,-500.0,0.00018452,3]
[420841642,1776621040805,-500.0,0.00018452,3]
[420841643,1776621040815,-500.0,0.00018452,3]
[420841644,1776621040824,-565.95825728,0.00018452,3]
[420841645,1776621040834,-500.0,0.00018452,3]
[420841646,1776621040843,-500.0,0.00018452,3]
[420841647,1776621040854,-500.0,0.00018452,3]
[420841648,1776621040863,-500.0,0.00018452,3]
[420841649,1776621040872,-196.26062838,0.00018452,3]
[420841650,1776621040882,-1771.4,0.00018511,2]
[420841651,1776621040892,-1408.0,0.00018532,2]
[420841652,1776621040901,-253.081,0.00018532,2]
[420841653,1776621040911,-150.903,0.00018532,2]
[420841654,1776621040920,-150.164,0.00018532,2]
[420841655,1776621040929,-537.6845,0.00018714,2]
[420841656,1776621040939,-469.0423266,0.00018714,2]
[420841657,1776621040948,-210.27973076,0.00018714,2]
[420841658,1776621040958,-1957.856,0.00018714,2]
[420841659,1776621040968,-537.6845,0.00018714,2]
[420841660,1776621040977,-151.0,0.00018714,2]
[420841661,1776621040987,-2150.738,0.00018714,2]
[420841662,1776621040996,-231.0,0.0001874,2]
[420841663,1776621041006,-557.5788265,0.00018769,2]
[420841664,1776621041015,-1485.40188293,0.00018769,2]
[420841665,1776621041024,-1771.4,0.00018818,2]
[420841666,1776621041034,-578.20924308,0.00018824,2]
[420841667,1776621041043,-599.60298507,0.00018879,2]
[420841668,1776621041052,-3249.9,0.000189,2]
[420841669,1776621041063,-1000.0,0.00018912,6]
[420841670,1776621041072,-621.78829552,0.00018934,2]
[420841671,1776621041082,-644.79446245,0.00018989,2]
[420841672,1776621041091,-5000.0,0.00019,3]
[420841673,1776621041101,-6289.0,0.00019,2]
[420841674,1776621041110,-1671.82020576,0.00019078,2]
[420841675,1776621041120,-638195.97,0.00019112,8]
[420841676,1776621041129,-1771.4,0.00019126,5]
[420841677,1776621041138,-229.2334559,0.00019169,30]
[420841678,1776621041147,-500.0,0.00019169,30]
[420841679,1776621041158,-500.0,0.00019169,30]
[420841680,1776621041167,-500.0,0.00019169,30]
[420841681,1776621041176,-500.0,0.00019169,30]
[420841682,1776621041186,-500.0,0.00019169,30]
[420841683,1776621041195,-500.0,0.00019169,30]
[420841684,1776621041204,-500.0,0.00019169,30]
[420841685,1776621041214,-500.0,0.00019169,30]
[420841686,1776621041223,-500.0,0.00019169,30]
[420841687,1776621041233,-500.0,0.00019169,30]
[420841688,1776621041243,-500.0,0.00019169,30]